Cogmind - Beta 9.6 @@@ ROGUE MODE // 2020.05.07 @ 06:17:21 Player: cptwinky Result: Destroyed by Striker with Compact Linear Accelerator Performance ------------- Evolutions (9) 4500 Regions Visited (31) 6200 Robots Destroyed (405) 2025 Value Destroyed (22030) 22030 Prototype IDs (57) 1140 Alien Tech Used (0) 0 Bonus (15249) 15249 TOTAL SCORE: 51144 Bonus ------- Triggered High Security 500 High Alert Combat Kills 9266 Follower Combat Kills 3473 Network Hubs Disabled 200 Met Data Miner 300 Met Imprinter 300 Was Imprinted 300 Met Warlord at Base 500 MAIN.C Attacked Warlord 500 Warlord Defense Kill 130 Met R17 at Cetus 500 Scanned by Researcher 500 Friendly Fire -1220 Cogmind --------- Core Integrity 0/1600 Matter 278/300 Energy 100/100 System Corruption 7% Temperature Cool (9) Movement Core (50) Location -1/Access Parts ------- > --- POWER (2) -------- (None) > --- PROPULSION (6) --- (None) > --- UTILITY (13) ----- (None) > --- WEAPON (4) ------- (None) > --- INVENTORY (4) ---- Experimental Armor Integrity Analyzer Peak State ------------ > --- POWER ------------ Reinforced Antimatter Reactor Reinforced Quantum Reactor > --- PROPULSION ------- Armored Heavy Treads Advanced Heavy Treads Biometal Heavy Treads > --- UTILITY ---------- Advanced Heat Sink Advanced Coolant Injector High-capacity Storage Unit High-capacity Storage Unit High-capacity Storage Unit Advanced Energy Well Experimental Optical Array Improved Targeting Computer Advanced Transmission Jammer Centrium Medium Armor Plating Centrium Medium Armor Plating Medium Regenerative Plating Thermal Barrier > --- WEAPON ----------- Heavy Quantum Rifle EMDS Improved KE Penetrator > --- INVENTORY -------- Light Quantum Reactor Vortex Chain Reactor Armored Heavy Treads High-capacity Storage Unit Advanced Energy Well Experimental Matter Compressor Experimental Armor Integrity Analyzer Makeshift Cloaking Device Centrium Heavy Armor Plating Light Regenerative Plating SHELL Armor EMDS Enhanced Nova Cannon Improved Potential Cannon Improved Potential Cannon KE Penetrator Improved KE Penetrator Heavy Proton Missile Launcher Mini Smartbomb Launcher Lance [Rating: 205] Favorites ----------- Power Improved Deuterium Engine Engine Improved Deuterium Engine Power Core Micro Fission Core Reactor Quantum Reactor Propulsion Light Treads Treads Light Treads Leg Zionite Composite Leg I Wheel Armored Huge Wheel Utility High-capacity Storage Unit Device Advanced Heat Sink Storage High-capacity Storage Unit Processor Advanced Signal Interpreter Hackware System Shield Protection Hardened Heavy Armor Plating Weapon Improved KE Penetrator Energy Gun Shock Rifle Energy Cannon EMDS Ballistic Gun Improved KE Penetrator Ballistic Cannon Slug Cannon Launcher Heavy Proton Missile Launcher Slashing Weapon Axe Piercing Weapon Kinetic Spear Build | -11 -10 -10 -10 -9 -8 -7 -7 -7 -7 -6 -6 -6 -6 -6 -5 -5 -5 -5 -5 -5 -5 -4 -4 -4 -4 -4 -4 -3 -2 -2 -1 ------- Run | Scr Mat Min Exi Min Mat Fac Low Low Zio Pro Fac Low Low Dat Pro Fac Was Fac Upp Upp War Pro Fac Ext Cet Arc Hub Res Res Tes Acc Slots Evolved 18 | . . . . . 4 2 . . . . 2 . . . . 2 . . . . . . 2 . . . . 2 2 . 2 Power 1 | . . . . . . 1 . . . . . . . . . . . . . . . . . . . . . . . . . Propulsion 4 | . . . . . 1 . . . . . . . . . . 1 . . . . . . . . . . . . . . 2 Utility 11 | . . . . . 3 1 . . . . . . . . . 1 . . . . . . 2 . . . . 2 2 . . Weapon 2 | . . . . . . . . . . . 2 . . . . . . . . . . . . . . . . . . . . Parts Attached 410 | 6 5 6 1 3 18 12 2 6 14 12 24 6 . . 33 6 2 14 13 11 18 7 8 6 11 2 18 42 11 40 53 Power 44 | 1 1 . 1 1 1 2 . . 3 2 4 2 . . 1 . . 3 . 2 1 . 1 1 1 . 3 5 1 2 5 Engine 17 | 1 1 . 1 1 1 2 . . 1 1 4 2 . . 1 . . . . 1 . . . . . . . . . . . Core 8 | . . . . . . . . . 2 1 . . . . . . . 3 . 1 1 . . . . . . . . . . Reactor 19 | . . . . . . . . . . . . . . . . . . . . . . . 1 1 1 . 3 5 1 2 5 Propulsion 43 | 2 1 1 . . 4 1 . 2 . . 3 2 . . 2 1 . 2 . 2 2 . . . 1 . 1 3 1 . 12 Treads 35 | 1 1 . . . 4 1 . . . . 2 1 . . 2 . . 1 . 2 2 . . . 1 . 1 3 1 . 12 Leg 1 | . . . . . . . . . . . . 1 . . . . . . . . . . . . . . . . . . . Wheel 7 | 1 . 1 . . . . . 2 . . 1 . . . . 1 . 1 . . . . . . . . . . . . . Hover . | . . . . . . . . . . . . . . . . . . . . . . . . . . . . . . . . Flight . | . . . . . . . . . . . . . . . . . . . . . . . . . . . . . . . . Utility 152 | 1 2 . . . 6 3 . 1 5 4 4 2 . . 15 2 2 6 6 1 11 2 6 2 3 2 6 20 8 15 17 Device 64 | . . . . . . 1 . . 1 2 2 2 . . 10 1 1 5 5 1 6 1 3 1 1 2 1 3 6 5 4 Storage 24 | 1 2 . . . . . . . 3 . . . . . . . 1 1 . . 2 . . 1 . . . 4 1 5 3 Processor 10 | . . . . . . . . . . . . . . . 1 . . . . . . . 2 . 1 . 2 2 . 1 1 Hackware 4 | . . . . . 1 . . . . . 1 . . . . . . . . . . . . . . . . 2 . . . Protection 50 | . . . . . 5 2 . 1 1 2 1 . . . 4 1 . . 1 . 3 1 1 . 1 . 3 9 1 4 9 Artifact . | . . . . . . . . . . . . . . . . . . . . . . . . . . . . . . . . Weapon 171 | 2 1 5 . 2 7 6 2 3 6 6 13 . . . 15 3 . 3 7 6 4 5 1 3 6 . 8 14 1 23 19 Energy Gun 29 | 1 . 1 . . . 4 . . . . 8 . . . 3 2 . 1 1 . 2 3 1 . . . . . . 2 . Energy Cannon 32 | . . . . . . . . 1 . . . . . . 2 . . . 2 1 . . . . . . 1 3 1 11 10 Ballistic Gun 66 | 1 1 2 . 1 5 2 2 1 5 3 4 . . . 4 . . 1 1 2 1 . . 1 5 . 2 9 . 8 5 Ballistic Cannon 10 | . . . . . . . . . . . . . . . 3 . . 1 . 2 . 1 . . 1 . 1 . . . 1 Launcher 19 | . . 2 . 1 2 . . . . 1 1 . . . 1 1 . . 2 1 . . . 2 . . 1 1 . 1 2 Special Weapon . | . . . . . . . . . . . . . . . . . . . . . . . . . . . . . . . . Impact Weapon . | . . . . . . . . . . . . . . . . . . . . . . . . . . . . . . . . Slashing Weapon 6 | . . . . . . . . 1 1 2 . . . . 2 . . . . . . . . . . . . . . . . Piercing Weapon 9 | . . . . . . . . . . . . . . . . . . . 1 . 1 1 . . . . 3 1 . 1 1 Special Melee Weapon . | . . . . . . . . . . . . . . . . . . . . . . . . . . . . . . . . Unidentified Prototypes 25 | . . . . . 1 . . . . . 3 1 . . . . . 1 . . 6 . . . 3 . 2 2 . 5 1 Parts Lost 87 | . 1 1 . . 5 1 . 2 . . 6 . . . 10 . 1 3 2 1 . 2 . . 1 . 3 4 . 6 38 Power 10 | . . . . . 1 . . . . . 1 . . . 1 . 1 . . . . . . . . . . 1 . 2 3 Propulsion 16 | . 1 . . . 2 . . 1 . . . . . . . . . 1 . . . . . . . . 1 . . . 10 Utility 32 | . . . . . 2 . . 1 . . 2 . . . 3 . . 1 2 . . 1 . . 1 . 1 2 . 4 12 Weapon 29 | . . 1 . . . 1 . . . . 3 . . . 6 . . 1 . 1 . 1 . . . . 1 1 . . 13 Highest Loss Streak 28 | . 1 1 . . 3 1 . 1 . . 1 . . . 6 . 1 1 2 1 . 2 . . 1 . 1 2 . 4 28 Average Slot Usage (%) 87 | . 99 100 100 100 86 90 92 88 81 84 82 80 80 80 87 83 68 71 93 94 93 92 93 94 89 89 85 85 85 83 77 Engine 6 | . 14 14 14 14 8 13 15 15 10 6 10 13 13 13 12 5 3 . . 1 3 . . . . . . . . . . Core 2 | . . . . . . . . . 3 7 1 . . . . . . 9 11 9 6 11 7 4 . . . . . . . Reactor 2 | . . . . . . . . . . . . . . . . . . . . . . . 2 5 10 10 10 8 8 7 7 Treads 11 | . 17 27 14 14 18 23 23 16 . . 5 6 6 6 6 5 5 5 11 11 12 17 15 15 10 10 10 8 8 8 11 Wheel 4 | . 10 . 14 14 5 . . 3 15 15 6 6 6 6 6 6 11 10 5 5 3 . . . . . . . . . . Device 6 | . . . . . . 2 7 5 3 6 5 6 6 6 8 11 11 9 11 11 8 5 10 10 14 15 11 4 17 16 9 Storage 18 | . 27 28 28 28 18 15 15 15 17 23 20 20 20 20 20 17 17 16 17 17 17 17 15 15 15 15 15 15 17 17 15 Processor 4 | . . . . . . . . . . . . . . . 4 5 5 5 5 5 5 5 10 10 10 10 10 18 13 12 10 Hackware 1 | . . . . . . 7 7 7 7 . . . . . . . . . . . . . . . . . . 4 . . . Protection 6 | . . . . . 17 12 7 8 7 7 6 6 6 6 3 4 5 5 4 5 7 11 9 10 5 5 5 6 7 6 11 Energy Gun 5 | . 14 14 14 14 1 8 . . . . 11 13 13 13 7 3 5 4 5 2 4 13 9 9 . . . . . 1 . Ballistic Gun 8 | . 14 13 14 12 16 7 15 14 13 14 11 . . . 6 5 . . 7 6 6 4 . 3 11 15 13 8 4 6 1 Ballistic Cannon 1 | . . . . . . . . . . . . . . . 2 5 . . 5 10 7 . 5 5 1 5 2 . . . 2 Naked Turns 6 | . . . . . . . . . . . . . . . . . . . . . . . . . . . . . . . 6 Heaviest Build 228 | 9 71 72 72 76 96 122 109 127 139 145 160 158 158 158 158 142 136 147 153 153 149 148 147 165 173 172 206 204 213 213 228 Greatest Support 225 | 16 40 40 16 16 60 60 60 60 44 44 44 28 28 28 28 38 38 38 28 28 120 120 120 120 150 150 160 160 145 145 225 Greatest Overweight (x) 5 | . 4 4 4 4 5 2 1 4 3 3 5 5 5 5 5 5 3 4 5 5 5 1 1 1 1 1 1 1 1 1 1 Average Overweight (x) 2 | . 2 1 4 4 3 1 1 2 2 3 4 5 5 5 4 3 3 2 5 5 4 1 1 1 1 1 1 . 1 1 . Largest Inventory Capacity 32 | 6 20 20 20 20 20 20 20 20 28 28 28 28 28 28 28 28 28 28 28 28 28 28 28 28 28 28 28 28 32 28 28 Average Capacity 25 | 5 19 20 20 20 20 20 20 20 22 28 28 28 28 28 28 28 27 27 28 28 28 28 28 28 28 28 28 28 28 28 27 Most Carried 28 | 4 20 20 19 20 20 20 20 20 28 28 28 28 28 28 28 26 28 28 28 28 28 28 27 28 28 28 28 28 28 28 28 Average Carried 24 | 2 10 19 18 19 18 19 19 19 21 27 27 27 28 28 26 21 24 25 26 27 27 27 26 27 27 28 27 27 27 27 24 Final Capacity 28 | 6 20 20 20 20 20 20 20 20 28 28 28 28 28 28 28 28 28 28 28 28 28 28 28 28 28 28 28 28 28 28 4 Final Carried 28 | 4 20 19 19 20 19 20 20 19 28 28 28 28 28 28 23 22 21 26 28 28 28 27 27 28 28 28 28 28 28 27 1 Class Distribution -------------------- 38% | Messiah-Tank 30% | Hauler-Mutant 25% | Messiah-Mutant 4% | Messiah-Gunner Dominant Class ---------------- Hauler-Mutant | -10/Materials Hauler-Mutant | -10/Mines Hauler-Mutant | -10/Exiles Hauler-Mutant | -9/Mines Hauler-Mutant | -8/Materials Hauler-Mutant | -7/Factory Hauler-Mutant | -7/Lower Caves Hauler-Mutant | -7/Lower Caves Hauler-Mutant | -7/Zion Messiah-Mutant | -6/Proximity Caves Messiah-Tank | -6/Factory Messiah-Mutant | -6/Lower Caves Messiah-Mutant | -6/Lower Caves Messiah-Mutant | -6/Data Miner Messiah-Tank | -5/Proximity Caves Messiah-Mutant | -5/Factory Messiah-Tank | -5/Waste Messiah-Tank | -5/Factory Messiah-Tank | -5/Upper Caves Messiah-Tank | -5/Upper Caves Messiah-Tank | -5/Warlord Messiah-Tank | -4/Proximity Caves Messiah-Tank | -4/Factory Messiah-Tank | -4/Extension Messiah-Tank | -4/Cetus Messiah-Tank | -4/Archives Messiah-Tank | -4/Hub_04(d) Messiah-Mutant | -3/Research Messiah-Tank | -2/Research Messiah-Tank | -2/Testing Messiah-Mutant | -1/Access Resources | -11 -10 -10 -10 -9 -8 -7 -7 -7 -7 -6 -6 -6 -6 -6 -5 -5 -5 -5 -5 -5 -5 -4 -4 -4 -4 -4 -4 -3 -2 -2 -1 ----------- Run | Scr Mat Min Exi Min Mat Fac Low Low Zio Pro Fac Low Low Dat Pro Fac Was Fac Upp Upp War Pro Fac Ext Cet Arc Hub Res Res Tes Acc Matter Collected 12774 | 264 189 114 . 116 488 213 39 305 145 275 830 227 16 . 698 57 194 124 241 402 523 215 62 50 263 226 1702 1511 301 1519 1465 Remotely . | . . . . . . . . . . . . . . . . . . . . . . . . . . . . . . . . Salvage Created 23364 | 82 365 227 . 179 732 350 . 393 . 280 806 446 81 . 716 92 1000 381 404 239 160 150 . 196 348 455 2630 4442 468 2302 5440 Parts 878 | . 22 10 . 11 49 25 . 16 . 11 30 9 5 . 27 5 4 12 18 13 7 6 . 5 9 22 108 170 14 99 171 Haulers Intercepted 7 | . 1 . . . 1 . . . . . . . . . 1 . . . . . . . . . . . 2 2 . . . Recyclers Shooed 14 | . 2 . . . . . . . . . 4 . . . . . . . . . . . . . . . . 4 . . 4 Parts Field Recycled . | . . . . . . . . . . . . . . . . . . . . . . . . . . . . . . . . Retrieved Matter . | . . . . . . . . . . . . . . . . . . . . . . . . . . . . . . . . Parts Self-Destructed 191 | . . . . . . . . 17 . 19 . . 1 . 17 . . . 9 5 117 6 . . . . . . . . . Prevented 44 | . . . . . . . . . . 4 . 9 1 . 14 . . . 9 3 4 . . . . . . . . . . Kills | -11 -10 -10 -10 -9 -8 -7 -7 -7 -7 -6 -6 -6 -6 -6 -5 -5 -5 -5 -5 -5 -5 -4 -4 -4 -4 -4 -4 -3 -2 -2 -1 ------- Run | Scr Mat Min Exi Min Mat Fac Low Low Zio Pro Fac Low Low Dat Pro Fac Was Fac Upp Upp War Pro Fac Ext Cet Arc Hub Res Res Tes Acc Combat Hostiles Destroyed 319 | . 9 8 . 6 16 4 . 8 . 5 13 6 3 . 10 4 3 6 7 7 2 5 . . 4 4 27 47 3 30 82 Guns 150 | . 9 4 . 2 10 4 . 7 . 3 13 3 . . 4 . 3 6 3 2 2 5 . . 2 4 19 18 . 18 9 Cannons 38 | . . . . . . . . 1 . . . . . . 3 1 . . 1 1 . . . . . . 4 4 . 1 22 AOE 77 | . . 4 . 4 6 . . . . 2 . . 3 . 2 3 . . 1 3 . . . . 1 . 1 6 . 6 35 Classes Destroyed 24 | 1 5 . . 2 2 2 . 1 . . . . . . 1 1 1 . . . 1 2 . . . . . 1 . 1 3 Worker 24 | . 1 . . 1 4 . . . . . . . . . . 3 . . . . . . . . . . 5 2 . 4 4 Builder 15 | . . . . . 1 1 . . . . 1 . . . . . . . . . . . . . . . 2 3 . 5 2 Tunneler 2 | . . . . 1 . . . . . . . . . . . . . . . . . . . . . . 1 . . . . Hauler 7 | . 1 . . . 1 . . . . . . . . . 1 . . . . . . . . . . . 2 2 . . . Recycler 15 | 1 . . . . 1 1 . . . . . . . . . . 1 . . . . . . 1 . . 1 5 1 . 3 Mechanic 1 | . . . . . . . . . . . . . . . . . . . . . . . . . . . . 1 . . . Operator 7 | . 1 . . . 1 . . . . . 1 . . . . . . . . . . . . . . 3 . . . 1 . Drone 2 | . . . . . . . . . . . . . . . . . . . . . . . . . . . . . . . 2 Watcher 7 | . . . . . . . . . . . . . . . . 1 . . . . . . . . 1 . 2 . 1 . 2 Swarmer 33 | . 3 3 . . 7 . . . . . . . 3 . . 4 . . 1 4 . . . . . . . . . 4 4 Saboteur 5 | . . . . . . . . . . . . . . . . . . . . . 1 . . . . . . 2 . . 2 Grunt 123 | . 6 5 . 5 4 . . 5 . 2 9 3 . . 5 . . 4 3 . 1 . . . 2 . 8 14 . 9 38 Brawler 14 | . . . . . . 1 . 1 . . . 2 . . . . . . . . . . . . . . . 2 . 1 7 Duelist 19 | . . . . 1 . 1 . 1 . 2 1 . . . . . . . 1 . . . . . . . . 5 . . 7 Protector 5 | . . . . . . . . . . . . . . . . . . . . . . 2 . . . . 1 1 . . 1 Researcher 1 | . . . . . . . . . . . . . . . . . . . . . . . . . . . . . . 1 . Sentry 27 | . . . . . 5 1 . . . 1 1 1 . . . . . 1 1 1 . 1 . . . 4 2 4 3 . 1 Demolisher 2 | . . . . . . . . . . . . . . . . . . . . . . 2 . . . . . . . . . Hunter 29 | . . . . . . . . 1 . . 1 . . . 2 . . . . . . . . . . . 2 8 . 6 9 Programmer 46 | . . . . . . 1 . . . . 1 . . . 2 . . 1 1 2 2 . . . 1 . 4 11 . 10 10 Behemoth 2 | . . . . . . . . . . . . . . . 1 . . . . . . . . . . . . . . . 1 Compactor 3 | . . . . . . . . . . . . . . . . . 3 . . . . . . . . . . . . . . Cetus Guard 1 | . . . . . . . . . . . . . . . . . . . . . . . . . 1 . . . . . . Lightning 10 | . . . . . . . . . . . . . . . . . . . . . . . . . . . 10 . . . . Investigator 1 | . . . . . . . . . . . . . . . . . . . . . . . . . . . . . . . 1 Striker 1 | . . . . . . . . . . . . . . . . . . . . . . . . . . . . . . . 1 Executioner 1 | . . . . . . . . . . . . . . . . . . . . . . . . . . . . . . . 1 Z-Courier 1 | . . . . . . . . . . . . . . . . . . . . . . . . . . . 1 . . . . Martyr 1 | . . . . . . . . . . . . . . . . . . . . . . . . 1 . . . . . . . Best Kill Streak 20 | 1 5 3 . 5 9 4 . 3 . 2 3 3 3 . 4 5 2 2 3 5 1 2 . 1 2 6 10 8 1 13 20 Combat Bots Only 17 | . 5 3 . 3 4 2 . 3 . 2 3 3 3 . 4 4 2 2 3 5 1 2 . . 2 3 9 6 1 9 17 Max Kills in Single Turn 4 | 1 1 2 . 2 4 1 . 1 . 2 1 1 2 . 1 2 1 1 1 1 1 1 . 1 2 1 3 2 1 3 3 Gunslinging 1 | . . . . . . . . . . . . . . . . . . . . . . . . . . . 1 . . 1 . Exploded 3 | . . 2 . 2 2 . . . . 2 . . 2 . 1 1 . . 1 1 . . . . 1 . 1 2 . 2 3 Melee . | . . . . . . . . . . . . . . . . . . . . . . . . . . . . . . . . Uniques/NPCs Destroyed . | . . . . . . . . . . . . . . . . . . . . . . . . . . . . . . . . Combat | -11 -10 -10 -10 -9 -8 -7 -7 -7 -7 -6 -6 -6 -6 -6 -5 -5 -5 -5 -5 -5 -5 -4 -4 -4 -4 -4 -4 -3 -2 -2 -1 -------- Run | Scr Mat Min Exi Min Mat Fac Low Low Zio Pro Fac Low Low Dat Pro Fac Was Fac Upp Upp War Pro Fac Ext Cet Arc Hub Res Res Tes Acc Damage Taken 37473 | . 286 284 . 97 1082 405 . 898 . 228 1882 495 45 . 1970 46 52 1003 599 673 645 371 147 102 502 198 1688 3429 81 3602 16663 Core 3381 | . 55 59 . 45 83 31 . 63 . 19 192 40 . . 178 16 . 136 40 65 127 . 21 20 10 27 125 271 . 133 1625 Absorbed by Shields 3035 | . . . . . . . . . . . 20 . . . . . . . . . 212 . . . . . . 183 84 798 1738 Reduced by Siege Mode 236 | . . . . . . . . . . . . . . . . . . . . . . . . . . . . 139 . 27 70 Core Remaining (%) 74 | 100 . . . 36 84 . . . . 83 . . . . 51 . . . . . . 61 . . . . 82 79 . 90 . Volleys Fired 908 | 4 44 15 . 12 63 23 . 38 . 14 57 25 2 . 37 14 19 10 20 22 3 12 . 4 9 16 87 104 11 87 156 Largest 4 | 2 2 2 . 2 2 2 . 2 . 2 4 2 1 . 4 4 1 1 4 4 2 3 . 4 3 3 4 3 2 3 3 Hottest 300 | 60 60 70 . 70 70 100 . 103 . 48 250 100 50 . 250 221 250 250 231 236 120 220 . 241 105 105 166 105 105 300 200 Shots Fired 1890 | 8 88 24 . 18 122 40 . 76 . 26 216 43 2 . 104 28 19 10 43 52 6 25 . 16 21 48 242 202 12 178 221 Gun 1472 | 8 88 18 . 12 119 40 . 72 . 24 216 37 . . 74 12 19 10 22 16 6 25 . 12 15 48 228 150 1 135 65 Cannon 334 | . . . . . . . . 4 . . . . . . 23 13 . . 15 25 . . . 4 . . 10 43 11 40 146 Launcher 84 | . . 6 . 6 3 . . . . 2 . 6 2 . 7 3 . . 6 11 . . . . 6 . 4 9 . 3 10 Special . | . . . . . . . . . . . . . . . . . . . . . . . . . . . . . . . . Kinetic 1228 | 4 44 9 . 6 114 16 . 72 . 24 163 . . . 52 4 . 1 19 36 . . . 8 15 48 235 150 1 109 98 Thermal 240 | 4 44 9 . 6 5 . . 4 . . 47 . . . . . 19 9 . . . 4 . 8 . . . . . 32 49 Explosive 27 | . . 6 . 6 3 . . . . 2 . . . . . 3 . . . . . . . . . . . . . . 7 Electromagnetic 357 | . . . . . . 24 . . . . 2 43 2 . 45 21 . . 24 16 . . . . 6 . 7 52 11 37 67 Entropic 27 | . . . . . . . . . . . . . . . . . . . . . 6 21 . . . . . . . . . Phasic 11 | . . . . . . . . . . . 4 . . . 7 . . . . . . . . . . . . . . . . Robot Hit Streak 74 | 3 14 6 . 7 17 9 . 12 . 9 15 8 10 . 15 11 7 6 8 8 5 11 . 4 13 16 10 34 27 74 35 Robot Miss Streak 8 | 2 3 1 . 3 5 3 . 4 . 1 6 4 . . 3 2 8 4 3 5 2 3 . 2 1 2 5 1 . 2 3 Penetration Max 1 | . . . . . . . . . . . . . . . . . . . 1 1 . . . . 1 1 1 1 . 1 1 Secondary Targets 23 | . 1 . . . . . . 2 . 1 1 1 . . 1 . . . . . 2 . . . . . 7 2 . 5 . Max Gunslinging Chain 1 | . 1 . . . . . . 1 . 1 1 1 . . 1 . . . . . 1 . . . . . 1 1 . 1 . Shots Hit Robots 1324 | 4 62 16 . 9 88 24 . 47 . 21 135 26 2 . 72 19 19 9 29 30 9 22 . 9 11 33 145 174 11 128 170 Core Hits 756 | 2 24 16 . 16 40 13 . 23 . 14 46 13 5 . 26 12 22 21 13 9 5 16 . 3 18 17 83 90 4 65 140 Critical Hits 171 | . 2 1 . . . . . . . . . . . . 5 . . . 1 2 . . . . 4 12 46 35 1 20 42 Critical Kills 62 | . . . . . . . . . . . . . . . 1 . . . . . . . . . . 6 23 10 . 8 14 Critical Parts Destroyed 99 | . 2 1 . . . . . . . . . . . . 3 . . . 1 2 . . . . 4 3 23 22 1 12 25 Melee Attacks 80 | . . . . . . . . 3 10 6 . . . . 3 . . . 3 . 23 2 . . . . 14 1 . 9 6 Impact . | . . . . . . . . . . . . . . . . . . . . . . . . . . . . . . . . Slashing 22 | . . . . . . . . 3 10 6 . . . . 3 . . . . . . . . . . . . . . . . Piercing 58 | . . . . . . . . . . . . . . . . . . . 3 . 23 2 . . . . 14 1 . 9 6 Sneak Attacks 5 | . . . . . . . . . . . . . . . . . . . . . 3 . . . . . 1 . . . 1 Combat Hostiles . | . . . . . . . . . . . . . . . . . . . . . . . . . . . . . . . . Follow-up Attacks . | . . . . . . . . . . . . . . . . . . . . . . . . . . . . . . . . Damage Inflicted 66129 | 35 552 475 . 564 1820 506 . 752 . 639 2306 704 82 . 2105 857 2598 676 982 999 608 775 . 247 1280 1088 5465 8454 523 8037 23000 Guns 26877 | 35 552 141 . 45 1141 403 . 675 . 305 2306 426 . . 1092 176 2598 500 443 173 214 775 . 203 459 1088 3948 4056 . 3553 1570 Cannons 17711 | . . . . . . . . 77 . . . . . . 438 276 . . 239 483 . . . 44 . . 373 2618 523 1958 10682 Explosions 20759 | . . 334 . 519 679 103 . . . 334 . 278 82 . 575 405 . 159 300 343 . . . . 821 . 966 1743 . 2526 10592 Melee 717 | . . . . . . . . . . . . . . . . . . . . . 394 . . . . . 178 37 . . 108 Ramming 65 | . . . . . . . . . . . . . . . . . . 17 . . . . . . . . . . . . 48 Kinetic 21444 | 23 276 61 . 33 1103 238 . 675 . 305 1617 . . . 834 51 . 22 490 602 . . . 115 459 1088 4114 4056 . 2835 2447 Thermal 23832 | 12 276 80 . 12 247 . . 77 . . 608 . . . 192 . 2598 478 . 56 . 25 . 132 217 . 69 215 . 3526 15012 Explosive 4276 | . . 334 . 519 470 . . . . 334 . . . . . 405 . . . . . . . . . . . 470 . . 1744 Electromagnetic 14600 | . . . . . . 268 . . . . 15 704 82 . 914 401 . 159 492 341 . . . . 604 . 1104 3676 523 1676 3641 Impact . | . . . . . . . . . . . . . . . . . . . . . . . . . . . . . . . . Slashing . | . . . . . . . . . . . . . . . . . . . . . . . . . . . . . . . . Piercing 717 | . . . . . . . . . . . . . . . . . . . . . 394 . . . . . 178 37 . . 108 Entropic 964 | . . . . . . . . . . . . . . . . . . . . . 214 750 . . . . . . . . . Phasic 231 | . . . . . . . . . . . 66 . . . 165 . . . . . . . . . . . . . . . . Highest Corruption 20 | . . . . . 5 4 4 4 4 . 2 2 2 2 5 . . 5 3 6 6 . . 1 1 1 8 9 . 20 7 Average Corruption 4 | . . . . . 5 2 4 4 4 . 1 2 2 2 3 . . 3 1 4 4 . . 1 1 1 5 6 . 12 2 Corruption Purged 12 | . . . . . . . . . . . . . . . . . . 3 5 3 . . . . . 1 . . . . . Effects 262 | . . . . . 14 5 10 17 2 . 5 7 1 2 13 . . 4 8 5 . . . 2 2 2 26 46 . 66 25 Message Errors 46 | . . . . . 2 . 5 . . . 1 2 . . 7 . . 1 2 . . . . 2 1 1 1 7 . 7 7 Matter Fused 38 | . . . . . 2 . 2 5 . . . . . . 1 . . 2 . . . . . . . . 6 10 . 9 1 Heat Flow Errors 25 | . . . . . . 1 1 3 . . 3 2 1 1 . . . 1 . . . . . . . . 2 4 . 4 2 Energy Discharges 25 | . . . . . 3 1 1 2 1 . . . . . . . . . 3 2 . . . . . . 1 3 . 3 5 Parts Rejected 1 | . . . . . . . . . . . . . . . . . . . . . . . . . . . . . . 1 . Data Loss (minor) 30 | . . . . . 5 1 1 3 1 . . 2 . 1 . . . . 1 2 . . . . 1 . 3 3 . 4 2 Data Loss (major) 10 | . . . . . . . . . . . . . . . 2 . . . . . . . . . . . 2 2 . 3 1 Misfires 8 | . . . . . . . . . . . . . . . . . . . . 1 . . . . . . 1 4 . 2 . Alerts 1 | . . . . . . . . . . . . . . . . . . . . . . . . . . . . . . 1 . Misdirections 5 | . . . . . . . . . . . . . . . . . . . . . . . . . . . . . . 5 . Targeting Errors 61 | . . . . . 1 2 . 4 . . 1 . . . 2 . . . 2 . . . . . . 1 9 10 . 22 7 Weapon Failures 12 | . . . . . 1 . . . . . . 1 . . 1 . . . . . . . . . . . 1 3 . 5 . Overload Shots . | . . . . . . . . . . . . . . . . . . . . . . . . . . . . . . . . Overflow Damage 3656 | . . 4 . 20 4 . . . . . . . . . 39 84 . . 25 36 77 . . . . . 11 143 11 786 2416 Projectiles 1359 | . . . . . . . . . . . . . . . 3 30 . . . 26 . . . . . . . 94 11 149 1046 Explosions 2147 | . . 4 . 20 4 . . . . . . . . . 36 54 . . 25 10 . . . . . . 11 49 . 637 1297 Melee 150 | . . . . . . . . . . . . . . . . . . . . . 77 . . . . . . . . . 73 Knockbacks 16 | . . . . . . . . . . . . . . . 2 . . . 1 1 . . . . . . 2 . . . 10 Impact . | . . . . . . . . . . . . . . . . . . . . . . . . . . . . . . . . Kinetic 15 | . . . . . . . . . . . . . . . 2 . . . 1 1 . . . . . . 2 . . . 9 Secondary 1 | . . . . . . . . . . . . . . . . . . . . . . . . . . . . . . . 1 Self-Inflicted Damage 954 | . . . . . 58 . . . . . . . . . . . . 23 . 21 . . . . 31 . 130 255 . 70 366 Shots 24 | . . . . . 1 . . . . . . . . . . . . 1 . 1 . . . . 2 . 5 7 . 1 6 Rammed 4 | . . . . . . . . . . . . . . . . . . 1 . . . . . . . . . . . . 3 Targets Rammed 4 | . . . . . . . . . . . . . . . . . . 1 . . . . . . . . . . . . 3 Kicked . | . . . . . . . . . . . . . . . . . . . . . . . . . . . . . . . . Crushed . | . . . . . . . . . . . . . . . . . . . . . . . . . . . . . . . . Highest Temperature 563 | 40 82 100 . 60 58 409 96 400 . 13 563 257 93 243 373 78 133 219 192 190 150 189 . 194 . 3 199 199 1 199 438 Average Temperature 96 | 27 32 43 . 19 10 144 64 161 . 5 128 93 49 127 91 46 33 104 88 105 65 80 . 111 . 3 127 76 1 66 111 Received Heat Transfer 5565 | . 126 126 . 54 378 69 . 369 . 84 564 231 . . 399 . . 246 126 . 181 . 42 . 24 18 99 288 16 185 1940 Effects 11 | . . . . . . . . . . . 6 . . 1 3 . . . . . . . . . . . . . . . 1 Shutdowns 3 | . . . . . . . . . . . 2 . . . . . . . . . . . . . . . . . . . 1 Energy Bleed 2 | . . . . . . . . . . . . . . . 2 . . . . . . . . . . . . . . . . Interference 1 | . . . . . . . . . . . . . . 1 . . . . . . . . . . . . . . . . . Matter Decay 1 | . . . . . . . . . . . . . . . 1 . . . . . . . . . . . . . . . . Damage (minor) 1 | . . . . . . . . . . . 1 . . . . . . . . . . . . . . . . . . . . Damage (major) 3 | . . . . . . . . . . . 3 . . . . . . . . . . . . . . . . . . . . Siege Activations 9 | . . . . . . . . . . . . . . . . . . . . . . . . . . . . 5 . 2 2 Total Turns 421 | . . . . . . . . . . . . . . . . . . . . . . . . . . . . 295 . 65 61 Longest Duration 133 | . . . . . . . . . . . . . . . . . . . . . . . . . . . . 133 . 39 45 Robots Corrupted 56 | . . . . . . . . . . . . 3 . . 2 . . . 2 1 . . . . 1 . 3 19 3 6 16 Combat Hostiles 54 | . . . . . . . . . . . . 3 . . 1 . . . 2 1 . . . . 1 . 3 19 3 5 16 Parts Fried 95 | . . . . . . . . . . 1 . . . . 11 1 . 1 2 1 . . . . 1 . 7 31 3 10 26 Impact Corruptions 1 | . . . . . . . . . . . . . . . . . . . . . . . . . . . . . . . 1 Robots Melted . | . . . . . . . . . . . . . . . . . . . . . . . . . . . . . . . . Combat Hostiles . | . . . . . . . . . . . . . . . . . . . . . . . . . . . . . . . . Parts Melted 11 | . . 1 . . . . . . . . 1 . . . . . 1 1 . . . . . . . . 1 . . 2 4 Heat Transferred 19459 | 25 625 175 . 37 261 . . 150 . . 1086 . . . 150 . 3850 675 . 50 . 37 . 185 200 . 50 150 . 2349 9404 Parts Sabotaged 1 | . . . . . . . . . . . . . . . . . . . . . . . . . . . . . . . 1 Parts Stolen . | . . . . . . . . . . . . . . . . . . . . . . . . . . . . . . . . Parts Stripped . | . . . . . . . . . . . . . . . . . . . . . . . . . . . . . . . . Power Chain Reactions 11 | . . . . . . 1 . . . . . . 1 . 2 . . . . 2 . . . . 1 . 1 3 . . . Missiles Intercepted . | . . . . . . . . . . . . . . . . . . . . . . . . . . . . . . . . Alert | -11 -10 -10 -10 -9 -8 -7 -7 -7 -7 -6 -6 -6 -6 -6 -5 -5 -5 -5 -5 -5 -5 -4 -4 -4 -4 -4 -4 -3 -2 -2 -1 ------- Run | Scr Mat Min Exi Min Mat Fac Low Low Zio Pro Fac Low Low Dat Pro Fac Was Fac Upp Upp War Pro Fac Ext Cet Arc Hub Res Res Tes Acc Peak Influence 3041 | 5 240 203 . 130 543 696 . . . . 286 . . . . 210 93 205 . . . . 663 1230 1086 489 1150 1563 1059 1443 3041 Average Influence 510 | . 93 109 . 17 280 360 . . . . 156 . . . . 186 73 119 . . . . 251 640 864 461 543 966 919 808 1330 Maximum Alert Level 5 | . 1 1 . . 2 2 . . . . 1 . . . . 1 . 1 . . . . 2 4 3 2 4 4 3 4 5 Low Security (%) 35 | 100 89 59 . 100 33 . . . . . 70 . . . . 60 100 70 . . . . 41 . . . 1 . . . . Level 1 18 | . 10 40 . . 38 70 . . . . 29 . . . . 39 . 29 . . . . 23 37 . 21 48 . . . . Level 2 15 | . . . . . 28 29 . . . . . . . . . . . . . . . . 35 15 10 78 16 23 . 50 10 Level 3 20 | . . . . . . . . . . . . . . . . . . . . . . . . 29 89 . 26 43 100 32 47 Level 4 7 | . . . . . . . . . . . . . . . . . . . . . . . . 16 . . 7 33 . 17 15 Level 5 . | . . . . . . . . . . . . . . . . . . . . . . . . . . . . . . . 1 High Security 2 | . . . . . . . . . . . . . . . . . . . . . . . . . . . . . . . 24 Max Security . | . . . . . . . . . . . . . . . . . . . . . . . . . . . . . . . . Squads Dispatched 90 | . 5 . . . 4 5 . . . . 8 . . . . 1 . 7 . . . . 3 3 . . 8 10 1 7 28 Investigation 11 | . 3 . . . . . . . . . 4 . . . . . . 3 . . . . . . . . . 1 . . . Extermination 20 | . . . . . . 1 . . . . 3 . . . . 1 . 1 . . . . 1 . . . 2 4 . 4 3 Reinforcement 20 | . 2 . . . 1 . . . . . 1 . . . . . . 1 . . . . 1 2 . . 2 2 . 3 5 Assault 30 | . . . . . . 1 . . . . . . . . . . . 1 . . . . 1 1 . . 4 3 1 . 18 Garrison 9 | . . . . . 3 3 . . . . . . . . . . . 1 . . . . . . . . . . . . 2 Intercept . | . . . . . . . . . . . . . . . . . . . . . . . . . . . . . . . . Construction Impeded 7 | . . . . . . . . . . . . . . . . . . . . . . . 1 2 . . 1 1 . . 2 Haulers Reinforced 2 | . . . . . . . . . . . . . . . . . . . . . . . . . . . . . . . 2 Stealth | -11 -10 -10 -10 -9 -8 -7 -7 -7 -7 -6 -6 -6 -6 -6 -5 -5 -5 -5 -5 -5 -5 -4 -4 -4 -4 -4 -4 -3 -2 -2 -1 --------- Run | Scr Mat Min Exi Min Mat Fac Low Low Zio Pro Fac Low Low Dat Pro Fac Was Fac Upp Upp War Pro Fac Ext Cet Arc Hub Res Res Tes Acc Distress Signals 25 | . 1 . . . 2 . . . . . . . . . . . . . . . . 15 2 . 2 . 1 1 . . 1 Communications Jammed 85 | . . . . . . . . . . . . . . . . . . . . . . . 1 4 . . . . . 80 . Distress Signals 85 | . . . . . . . . . . . . . . . . . . . . . . . 1 4 . . . . . 80 . Times Spotted 568 | . 23 9 . 9 21 12 . 10 . 14 25 11 1 . 14 5 6 21 11 13 12 6 4 13 15 13 39 56 5 43 157 Peak Tracking Total 25 | . 5 3 . 3 5 5 . 3 . 6 3 4 3 . 5 4 2 7 4 6 8 2 2 4 5 1 17 6 3 7 25 Tactical Retreats 39 | . 1 1 . . 1 . . 1 . 2 3 1 . . 1 . 1 2 3 1 . . 1 . . . 3 2 . 3 12 Traps | -11 -10 -10 -10 -9 -8 -7 -7 -7 -7 -6 -6 -6 -6 -6 -5 -5 -5 -5 -5 -5 -5 -4 -4 -4 -4 -4 -4 -3 -2 -2 -1 ------- Run | Scr Mat Min Exi Min Mat Fac Low Low Zio Pro Fac Low Low Dat Pro Fac Was Fac Upp Upp War Pro Fac Ext Cet Arc Hub Res Res Tes Acc Traps Triggered 8 | . 1 . . . . 2 . . . . 1 . . . . 1 . 1 . . . . 2 . . . . . . . . Indirectly 3 | . . . . . . 2 . . . . . . . . . . . 1 . . . . . . . . . . . . . Trap Hack Attempts . | . . . . . . . . . . . . . . . . . . . . . . . . . . . . . . . . Triggered . | . . . . . . . . . . . . . . . . . . . . . . . . . . . . . . . . Disarmed . | . . . . . . . . . . . . . . . . . . . . . . . . . . . . . . . . Reprogrammed 7 | . 7 . . . . . . . . . . . . . . . . . . . . . . . . . . . . . . Reused 3 | . 3 . . . . . . . . . . . . . . . . . . . . . . . . . . . . . . Traps Extracted . | . . . . . . . . . . . . . . . . . . . . . . . . . . . . . . . . Installed . | . . . . . . . . . . . . . . . . . . . . . . . . . . . . . . . . Triggered 17 | . 3 . . . . . . . . . . 4 . . . . . . 3 . 7 . . . . . . . . . . Machines | -11 -10 -10 -10 -9 -8 -7 -7 -7 -7 -6 -6 -6 -6 -6 -5 -5 -5 -5 -5 -5 -5 -4 -4 -4 -4 -4 -4 -3 -2 -2 -1 ---------- Run | Scr Mat Min Exi Min Mat Fac Low Low Zio Pro Fac Low Low Dat Pro Fac Was Fac Upp Upp War Pro Fac Ext Cet Arc Hub Res Res Tes Acc Machines Disabled 73 | . . 1 . . 6 22 . . . . 6 . . . . . . 1 . . . 3 7 . 1 2 12 3 . 7 2 Max in Single Turn 12 | . . 1 . . 5 12 . . . . 1 . . . . . . 1 . . . 1 . . 1 1 4 2 . 2 1 Garrison Access 5 | . . . . . . . . . . . . . . . . . . 1 . . . . 1 . . . 1 . . . 2 Network Hub 1 | . . . . . . . . . . . . . . . . . . . . . . . . . . . 1 . . . . Machines Sabotaged . | . . . . . . . . . . . . . . . . . . . . . . . . . . . . . . . . Garrisons Compromised . | . . . . . . . . . . . . . . . . . . . . . . . . . . . . . . . . Overloaded Fab Kills 7 | . . . . . . . . . . . . . . . . . . 7 . . . . . . . . . . . . . Fab Network Shutdowns . | . . . . . . . . . . . . . . . . . . . . . . . . . . . . . . . . Hacking | -11 -10 -10 -10 -9 -8 -7 -7 -7 -7 -6 -6 -6 -6 -6 -5 -5 -5 -5 -5 -5 -5 -4 -4 -4 -4 -4 -4 -3 -2 -2 -1 --------- Run | Scr Mat Min Exi Min Mat Fac Low Low Zio Pro Fac Low Low Dat Pro Fac Was Fac Upp Upp War Pro Fac Ext Cet Arc Hub Res Res Tes Acc Machines Accessed 44 | . 7 1 1 . 5 1 . . 1 . 4 1 1 4 . . . 4 1 2 2 . 1 . . . . 3 . 3 2 Terminals 11 | . 6 1 . . 3 . . . . . . . . . . . . . . 1 . . . . . . . . . . . Fabricators 4 | . . . . . . . . . . . 1 . . . . . . 1 . . . . . . . . . 1 . 1 . Repair Stations 6 | . . . . . 1 . . . . . 1 . . . . . . 1 . . . . 1 . . . . 1 . 1 . Recycling Units 3 | . 1 . . . . . . . . . 1 . . . . . . . . . . . . . . . . . . . 1 Scanalyzers 4 | . . . . . . . . . . . 1 . . . . . . 1 . . . . . . . . . 1 . 1 . Garrison Access 4 | . . . . . 1 1 . . . . . . . . . . . 1 . . . . . . . . . . . . 1 Total Hacks 137 | . 20 2 1 . 17 1 . . 4 . 17 1 1 22 . . . 10 1 5 2 . 3 . . . . 12 . 16 2 Successful 93 | . 12 . 1 . 12 1 . . 4 . 10 1 1 22 . . . 7 1 2 2 . 1 . . . . 6 . 8 2 Failed 43 | . 7 2 . . 5 . . . . . 7 . . . . . . 3 . 3 . . 2 . . . . 6 . 8 . Catastrophic 7 | . 2 . . . 2 . . . . . . . . . . . . 1 . . . . . . . . . 2 . . . Database Lockouts 1 | . 1 . . . . . . . . . . . . . . . . . . . . . . . . . . . . . . Manual 92 | . 13 2 . . 9 1 . . . . 6 . . . . . . 4 . 4 1 . 12 2 3 . 6 5 2 15 7 Terminals 32 | . 18 2 . . 8 . . . . . . . . . . . . . . 4 . . . . . . . . . . . Fabricators 11 | . . . . . . . . . . . 3 . . . . . . 1 . . . . . . . . . 2 . 5 . Repair Stations 30 | . . . . . 6 . . . . . 5 . . . . . . 4 . . . . 3 . . . . 4 . 8 . Recycling Units 5 | . 2 . . . . . . . . . 2 . . . . . . . . . . . . . . . . . . . 1 Scanalyzers 19 | . . . . . . . . . . . 7 . . . . . . 3 . . . . . . . . . 6 . 3 . Garrison Access 7 | . . . . . 3 1 . . . . . . . . . . . 2 . . . . . . . . . . . . 1 Terminal Hacks 43 | . 7 . 1 . 2 . . . 4 . . 1 1 22 . . . . 1 2 2 . . . . . . . . . . Record 12 | . . . 1 . . . . . . . . . . 11 . . . . . . . . . . . . . . . . . Part Schematic 10 | . . . . . 1 . . . 4 . . . . 4 . . . . . 1 . . . . . . . . . . . Robot Schematic 4 | . . . . . . . . . . . . . . 4 . . . . . . . . . . . . . . . . . Robot Analysis 2 | . 2 . . . . . . . . . . . . . . . . . . . . . . . . . . . . . . Prototype ID Bank 6 | . 2 . . . 1 . . . . . . . . 3 . . . . . . . . . . . . . . . . . Open Door 6 | . . . . . . . . . . . . 1 1 . . . . . 1 1 2 . . . . . . . . . . Locate Traps 1 | . 1 . . . . . . . . . . . . . . . . . . . . . . . . . . . . . . Reprogram Traps 2 | . 2 . . . . . . . . . . . . . . . . . . . . . . . . . . . . . . Fabricator Hacks 2 | . . . . . . . . . . . 1 . . . . . . . . . . . . . . . . 1 . . . Load Schematic 2 | . . . . . . . . . . . 1 . . . . . . . . . . . . . . . . 1 . . . Repair Station Hacks 23 | . . . . . 5 . . . . . 4 . . . . . . 4 . . . . 1 . . . . 2 . 7 . Scan Component 13 | . . . . . 3 . . . . . 2 . . . . . . 2 . . . . 1 . . . . 1 . 4 . Repair 10 | . . . . . 2 . . . . . 2 . . . . . . 2 . . . . . . . . . 1 . 3 . Recycling Unit Hacks 3 | . 1 . . . . . . . . . 1 . . . . . . . . . . . . . . . . . . . 1 Retrieve Components 3 | . 1 . . . . . . . . . 1 . . . . . . . . . . . . . . . . . . . 1 Scanalyzer 9 | . . . . . . . . . . . 4 . . . . . . 2 . . . . . . . . . 3 . . . Insert Component 5 | . . . . . . . . . . . 2 . . . . . . 1 . . . . . . . . . 2 . . . Analyze 4 | . . . . . . . . . . . 2 . . . . . . 1 . . . . . . . . . 1 . . . Garrison Access Hacks 1 | . . . . . . . . . . . . . . . . . . . . . . . . . . . . . . . 1 Seal Access 1 | . . . . . . . . . . . . . . . . . . . . . . . . . . . . . . . 1 Unauthorized Hacks 12 | . 4 . . . 5 1 . . . . . . . . . . . 1 . . . . . . . . . . . 1 . Terminals 6 | . 3 . . . 3 . . . . . . . . . . . . . . . . . . . . . . . . . . Assimilate 1 | . . . . . 1 . . . . . . . . . . . . . . . . . . . . . . . . . . Botnet 3 | . 1 . . . 2 . . . . . . . . . . . . . . . . . . . . . . . . . . Disrupt 2 | . 2 . . . . . . . . . . . . . . . . . . . . . . . . . . . . . . Fabricators 1 | . . . . . . . . . . . . . . . . . . 1 . . . . . . . . . . . . . Overload 1 | . . . . . . . . . . . . . . . . . . 1 . . . . . . . . . . . . . Repair Stations . | . . . . . . . . . . . . . . . . . . . . . . . . . . . . . . . . Recycling Units 1 | . 1 . . . . . . . . . . . . . . . . . . . . . . . . . . . . . . Tunnel 1 | . 1 . . . . . . . . . . . . . . . . . . . . . . . . . . . . . . Scanalyzers 1 | . . . . . . . . . . . . . . . . . . . . . . . . . . . . . . 1 . Researchers 1 | . . . . . . . . . . . . . . . . . . . . . . . . . . . . . . 1 . Garrison Access 3 | . . . . . 2 1 . . . . . . . . . . . . . . . . . . . . . . . . . Reprogram 3 | . . . . . 2 1 . . . . . . . . . . . . . . . . . . . . . . . . . Data Cores Recovered . | . . . . . . . . . . . . . . . . . . . . . . . . . . . . . . . . Used . | . . . . . . . . . . . . . . . . . . . . . . . . . . . . . . . . Hacking Detections 25 | . 5 1 . . 5 . . . . . 4 . . . . . . 3 . 1 . . 1 . . . . 2 . 3 . Full Trace Events 5 | . 1 . . . . . . . . . 3 . . . . . . 1 . . . . . . . . . . . . . Feedback Events 1 | . . . . . . . . . . . 1 . . . . . . . . . . . . . . . . . . . . Corruption 1 | . . . . . . . . . . . 1 . . . . . . . . . . . . . . . . . . . . Feedback Blocked . | . . . . . . . . . . . . . . . . . . . . . . . . . . . . . . . . Robot Schematics Acquired 4 | . . . . . . . . . . . . . . 4 . . . . . . . . . . . . . . . . . Robots Built . | . . . . . . . . . . . . . . . . . . . . . . . . . . . . . . . . Matter . | . . . . . . . . . . . . . . . . . . . . . . . . . . . . . . . . Time . | . . . . . . . . . . . . . . . . . . . . . . . . . . . . . . . . Total Robot Build Rating . | . . . . . . . . . . . . . . . . . . . . . . . . . . . . . . . . Part Schematics Acquired 24 | . . . . . 1 . . . 4 . 1 . . 4 . . . 1 . 1 . . . . . . . 1 . 11 . Parts Built . | . . . . . . . . . . . . . . . . . . . . . . . . . . . . . . . . Matter . | . . . . . . . . . . . . . . . . . . . . . . . . . . . . . . . . Time . | . . . . . . . . . . . . . . . . . . . . . . . . . . . . . . . . Total Part Build Rating . | . . . . . . . . . . . . . . . . . . . . . . . . . . . . . . . . Parts Repaired 9 | . . . . . 2 . . . . . 2 . . . . . . 2 . . . . . . . . . . . 3 . Time 402 | . . . . . 58 . . . . . 88 . . . . . . 70 . . . . . . . . . 108 . 78 . Parts Recycled . | . . . . . . . . . . . . . . . . . . . . . . . . . . . . . . . . Recycled Matter . | . . . . . . . . . . . . . . . . . . . . . . . . . . . . . . . . Retrieved Matter . | . . . . . . . . . . . . . . . . . . . . . . . . . . . . . . . . Retrieved Components 29 | . 9 . . . . . . . . . 10 . . . . . . . . . . . . . . . . . . . 10 Parts Scanalyzed 5 | . . . . . . . . . . . 2 . . . . . . 1 . . . . . . . . . 2 . . . Part Schematics Acquired 3 | . . . . . . . . . . . 1 . . . . . . 1 . . . . . . . . . 1 . . . Parts Damaged 1 | . . . . . . . . . . . 1 . . . . . . . . . . . . . . . . . . . . Bothacking | -11 -10 -10 -10 -9 -8 -7 -7 -7 -7 -6 -6 -6 -6 -6 -5 -5 -5 -5 -5 -5 -5 -4 -4 -4 -4 -4 -4 -3 -2 -2 -1 ------------ Run | Scr Mat Min Exi Min Mat Fac Low Low Zio Pro Fac Low Low Dat Pro Fac Was Fac Upp Upp War Pro Fac Ext Cet Arc Hub Res Res Tes Acc Used RIF Installer . | . . . . . . . . . . . . . . . . . . . . . . . . . . . . . . . . Robots Hacked . | . . . . . . . . . . . . . . . . . . . . . . . . . . . . . . . . Non-combat . | . . . . . . . . . . . . . . . . . . . . . . . . . . . . . . . . Combat . | . . . . . . . . . . . . . . . . . . . . . . . . . . . . . . . . Robot Hacks Applied . | . . . . . . . . . . . . . . . . . . . . . . . . . . . . . . . . Relay Couplers Released 7 | . . . . . . . . . . . . . . . . . . 2 . . . . 1 . . . 3 . . . 1 Machine Destruction 7 | . . . . . . . . . . . . . . . . . . 2 . . . . 1 . . . 3 . . . 1 Robots Rewired 7 | . . . . . . . . . . . . . . . . 1 . . . . 3 2 . . . . . . . 1 . Allies Hacked . | . . . . . . . . . . . . . . . . . . . . . . . . . . . . . . . . Hacks Repelled 1 | . . . . . . . . . . . . . . . . . . . . . . . . 1 . . . . . . . Allies | -11 -10 -10 -10 -9 -8 -7 -7 -7 -7 -6 -6 -6 -6 -6 -5 -5 -5 -5 -5 -5 -5 -4 -4 -4 -4 -4 -4 -3 -2 -2 -1 -------- Run | Scr Mat Min Exi Min Mat Fac Low Low Zio Pro Fac Low Low Dat Pro Fac Was Fac Upp Upp War Pro Fac Ext Cet Arc Hub Res Res Tes Acc Total Allies 45 | . . 3 . . 5 2 . . 8 . 2 . . . 1 1 . . . . 3 2 8 3 2 . 1 . 1 1 2 Largest Group 8 | . . 3 3 3 5 5 2 2 8 8 2 1 . . 1 1 1 . . . 3 2 6 7 5 2 1 . 1 1 2 Highest-Rated Group 422 | . . 40 40 40 45 45 32 32 258 258 170 77 . . 94 29 29 . . . 158 98 338 422 338 122 31 . 27 149 149 Highest-Rated Ally 149 | . . 16 16 16 15 16 16 16 40 40 85 77 . . 94 29 29 . . . 60 49 70 70 70 64 31 . 27 149 149 Zionite Dispatches 13 | . . . . . . . . . . . 1 . . . . . . . . . . . 5 1 1 . 2 . 1 . 2 Heavy 1 | . . . . . . . . . . . 1 . . . . . . . . . . . . . . . . . . . . Recon 3 | . . . . . . . . . . . . . . . . . . . . . . . 1 . . . 1 . . . 1 Fire 1 | . . . . . . . . . . . . . . . . . . . . . . . 1 . . . . . . . . Hacker 4 | . . . . . . . . . . . . . . . . . . . . . . . 1 1 1 . . . . . 1 Demo 1 | . . . . . . . . . . . . . . . . . . . . . . . 1 . . . . . . . . Defense Resupply 1 | . . . . . . . . . . . . . . . . . . . . . . . . . . . 1 . . . . Infowar Resupply 2 | . . . . . . . . . . . . . . . . . . . . . . . 1 . . . . . 1 . . Total Orders 20 | . . . . . . . . . . . 1 . . . . . . . . . 1 . 1 9 . . 6 . 1 . 1 STAY 3 | . . . . . . . . . . . . . . . . . . . . . 1 . . 1 . . 1 . . . . GOTO 10 | . . . . . . . . . . . . . . . . . . . . . . . . 8 . . 2 . . . . DROP 3 | . . . . . . . . . . . . . . . . . . . . . . . 1 . . . 1 . 1 . . EXPLORE 4 | . . . . . . . . . . . 1 . . . . . . . . . . . . . . . 2 . . . 1 Ally Attacks 399 | . . . . 24 . 40 . 7 . 44 19 3 . . 22 8 29 . . . 38 . 21 69 48 4 . . . 11 12 Total Damage 15979 | . . . . 322 . 584 . 66 . 1426 1073 184 . . 719 113 475 . . . 1065 . 1160 5900 1588 75 . . . 486 743 Kills 103 | . . . . 4 . 2 . 1 . 9 7 . . . 4 . 1 . . . 8 . 10 38 13 . . . . 4 2 Allies Corrupted 1 | . . . . . . 1 . . . . . . . . . . . . . . . . . . . . . . . . . Allies Melted . | . . . . . . . . . . . . . . . . . . . . . . . . . . . . . . . . Intel | -11 -10 -10 -10 -9 -8 -7 -7 -7 -7 -6 -6 -6 -6 -6 -5 -5 -5 -5 -5 -5 -5 -4 -4 -4 -4 -4 -4 -3 -2 -2 -1 ------- Run | Scr Mat Min Exi Min Mat Fac Low Low Zio Pro Fac Low Low Dat Pro Fac Was Fac Upp Upp War Pro Fac Ext Cet Arc Hub Res Res Tes Acc Robot Analysis Total 2 | . 2 . . . . . . . . . . . . . . . . . . . . . . . . . . . . . . Derelict Logs Recovered 12 | . . 1 . 2 . . 1 1 1 2 . 1 1 . . . . . . 1 . 1 . . . . . . . . . Drone Launches 7 | . . . . . . . . . . . 2 . . . . . . 3 . . . . . . . . . . . . 2 Drone Recoveries . | . . . . . . . . . . . . . . . . . . . . . . . . . . . . . . . . Zionite Intel Received 6 | . . . . . . . . . . . 1 . . . . . . . . . . . . . . . . 1 . 3 1 Branch Access 1 | . . . . . . . . . . . 1 . . . . . . . . . . . . . . . . . . . . Component Stockpiles 1 | . . . . . . . . . . . . . . . . . . . . . . . . . . . . . . 1 . Prototype Schematics 1 | . . . . . . . . . . . . . . . . . . . . . . . . . . . . . . 1 . Unaware Analyses 1 | . . . . . . . . . . . . . . . . . . . . . . . . . . . . . . 1 . Trap Installations 1 | . . . . . . . . . . . . . . . . . . . . . . . . . . . . 1 . . . Active Terminals 1 | . . . . . . . . . . . . . . . . . . . . . . . . . . . . . . . 1 Exploration | -11 -10 -10 -10 -9 -8 -7 -7 -7 -7 -6 -6 -6 -6 -6 -5 -5 -5 -5 -5 -5 -5 -4 -4 -4 -4 -4 -4 -3 -2 -2 -1 ------------- Run | Scr Mat Min Exi Min Mat Fac Low Low Zio Pro Fac Low Low Dat Pro Fac Was Fac Upp Upp War Pro Fac Ext Cet Arc Hub Res Res Tes Acc Turns Passed 24113 | 75 1068 879 229 1064 778 451 686 819 1825 527 1257 600 562 116 638 292 327 627 917 782 1273 1090 503 448 406 266 1059 1456 274 1242 1577 Spaces Moved 11951 | 47 499 435 161 689 242 175 379 410 1269 336 565 338 373 78 297 126 193 354 514 453 731 500 240 230 186 81 376 481 133 489 571 Core 55 | 4 . . . . . . . . 44 . . . . . . . . . . . . . . . . . . . . . 7 Treads 4873 | . 114 433 . . 76 175 379 246 . . . . . . . . . . . . 170 500 240 230 186 81 376 481 133 489 564 Legs . | . . . . . . . . . . . . . . . . . . . . . . . . . . . . . . . . Wheels 7023 | 43 385 2 161 689 166 . . 164 1225 336 565 338 373 78 297 126 193 354 514 453 561 . . . . . . . . . . Hover . | . . . . . . . . . . . . . . . . . . . . . . . . . . . . . . . . Flight . | . . . . . . . . . . . . . . . . . . . . . . . . . . . . . . . . Fastest Speed 50 | 50 100 140 140 140 140 180 180 120 50 130 130 150 150 150 140 120 120 110 150 150 140 180 180 180 180 180 180 160 165 165 50 Average Speed 154 | 95 144 179 140 140 159 184 180 162 119 130 146 150 150 150 145 137 120 120 150 150 156 180 180 180 180 180 180 179 169 165 177 Slowest Speed 200 | 100 180 180 140 140 200 200 180 200 130 130 150 150 150 150 150 150 120 140 150 150 180 180 180 180 180 180 180 180 172 165 190 Overloaded Moves . | . . . . . . . . . . . . . . . . . . . . . . . . . . . . . . . . Propulsion Burnouts . | . . . . . . . . . . . . . . . . . . . . . . . . . . . . . . . . Robots Hopped . | . . . . . . . . . . . . . . . . . . . . . . . . . . . . . . . . Cave-ins Triggered . | . . . . . . . . . . . . . . . . . . . . . . . . . . . . . . . . Exploration Rate (%) 47 | 4 72 78 53 99 27 5 58 59 89 45 18 57 65 68 41 3 70 7 67 61 88 59 10 45 69 69 36 20 5 51 24 Regions Visited 31 Branch Regions 20 Pre-discovered Areas 8 | . 1 . 1 2 . . . . 1 . . . . 1 . . . . . 1 . 1 . . . . . . . . . Known Exits Taken 19 | . . . . . 1 1 1 . . 1 1 1 . . 1 . . 1 1 1 1 1 1 1 1 1 1 1 1 . . Unknown Exits Taken 10 | 1 1 1 1 1 . . . 1 1 . . . 1 1 . . . . . . . . . . . . . . . 1 . Scrap Searched 27 | . . 2 . 2 . . 1 1 2 2 . 3 5 . 3 . . . 2 3 . 1 . . . . . . . . . Spaces Dug 257 | . . . . . 4 . . 3 2 4 . . . . 3 . . . 3 8 10 . . . . . 186 8 . 5 21 Terrain Destroyed 900 | . . 33 . 21 45 . . 3 2 22 1 . 3 . 24 31 . . 6 30 12 2 . 3 18 16 256 53 . 83 236 Melee 43 | . . . . . . . . 3 2 4 . . . . 3 . . . 3 . 10 . . . . . 11 . . 5 2 Projectile 161 | . . . . . . . . . . . 1 . . . 9 2 . . 3 15 2 2 . 3 3 16 77 3 . 11 14 AOE 696 | . . 33 . 21 45 . . . . 18 . . 3 . 12 29 . . . 15 . . . . 15 . 168 50 . 67 220 Actions | -11 -10 -10 -10 -9 -8 -7 -7 -7 -7 -6 -6 -6 -6 -6 -5 -5 -5 -5 -5 -5 -5 -4 -4 -4 -4 -4 -4 -3 -2 -2 -1 --------- Run | Scr Mat Min Exi Min Mat Fac Low Low Zio Pro Fac Low Low Dat Pro Fac Was Fac Upp Upp War Pro Fac Ext Cet Arc Hub Res Res Tes Acc Total 15875 | 66 766 508 165 775 510 264 383 483 1562 390 865 391 374 77 416 220 232 525 616 516 821 665 311 254 246 166 553 912 172 767 904 Wait 1945 | 6 196 51 2 64 177 39 . 20 212 11 174 8 . . 20 65 12 125 57 19 2 120 56 10 16 66 32 237 3 87 58 Move 11921 | 46 498 434 160 688 241 174 378 409 1268 335 564 337 372 77 296 126 192 353 513 452 730 499 239 229 185 80 375 480 132 488 571 Hop . | . . . . . . . . . . . . . . . . . . . . . . . . . . . . . . . . Pick Up 241 | 4 19 1 1 4 6 5 2 3 35 4 18 4 . . 12 . 5 15 6 4 6 6 2 2 8 . 9 16 3 21 20 Fast Attach 138 | 6 2 . . . 7 4 . 1 7 5 11 4 . . 6 2 1 9 1 5 10 . 4 1 4 2 5 15 5 12 9 Attach 144 | . 1 1 . . 6 1 1 2 1 1 10 1 . . 10 3 . 4 4 1 2 4 3 1 1 . 4 18 5 22 37 Detach 63 | . . . . . 1 . . 1 1 1 3 2 . . 2 5 . 3 1 . 5 . 3 . 1 . 4 6 5 7 12 Swap 128 | . 2 5 1 3 5 7 1 3 6 6 3 1 . . 17 1 1 1 8 5 6 3 1 4 6 . 9 9 1 6 7 Drop 245 | . 4 1 1 4 4 11 1 3 22 7 18 9 . . 13 . 2 4 1 8 17 3 1 3 16 2 14 26 7 24 19 Fire 908 | 4 44 15 . 12 63 23 . 38 . 14 57 25 2 . 37 14 19 10 20 22 3 12 . 4 9 16 87 104 11 87 156 Melee 80 | . . . . . . . . 3 10 6 . . . . 3 . . . 3 . 23 2 . . . . 14 1 . 9 6 Ram 3 | . . . . . . . . . . . . . . . . . . 1 . . . . . . . . . . . . 2 Kick . | . . . . . . . . . . . . . . . . . . . . . . . . . . . . . . . . Crush 1 | . . . . . . . . . . . . . . . . . . . . . . . . . . . . . . . 1 Escape Stasis 14 | . . . . . . . . . . . 6 . . . . . . . . . . . 2 . . . . . . . 6 Rewire 43 | . . . . . . . . . . . . . . . . 4 . . 2 . 17 16 . . . . . . . 4 . Trap . | . . . . . . . . . . . . . . . . . . . . . . . . . . . . . . . . Miscellaneous 1 | . . . . . . . . . . . 1 . . . . . . . . . . . . . . . . . . . . Route ------- -11/Scrapyard -10/Materials (discovered 3 exits: [*Mat x2] / *Min) -10/Mines (discovered 3 exits: [*Mat x2] / *Exi) -10/Exiles -9/Mines (discovered 2 exits: *Mat x2) -8/Materials -7/Factory (discovered 2 exits: *Low x2) -7/Lower Caves -7/Lower Caves (discovered 2 exits: *Fac / *Zio) -7/Zion -6/Proximity Caves -6/Factory (discovered 4 exits: Fac x2 / *Low x2) -6/Lower Caves -6/Lower Caves (discovered 2 exits: *Fac / *Dat) -6/Data Miner -5/Proximity Caves -5/Factory -5/Waste -5/Factory (discovered 2 exits: *Fac / *Upp) -5/Upper Caves -5/Upper Caves -5/Warlord -4/Proximity Caves -4/Factory (discovered 2 exits: *Upp / *Ext) -4/Extension (discovered 3 exits: *Res x2 / *Cet) -4/Cetus (discovered 2 exits: *Res / *Arc) -4/Archives (discovered 2 exits: *Hub x2) -4/Hub_04(d) -3/Research -2/Research -2/Testing -1/Access History --------- Turn | Location | Event 14 | -11/Scrapyard | Discovered new exit (range 15) 76 | -11/Scrapyard | Entered Materials 224 | -10/Materials | Discovered new exit (range 14) 373 | -10/Materials | Central database locked down 379 | -10/Materials | Discovered new exit (range 7) 451 | -10/Materials | Build established: Hauler-Mutant 762 | -10/Materials | Discovered new exit (range 12) 1144 | -10/Materials | Entered Mines 1180 | -10/Mines | Assembled infested the area 1667 | -10/Mines | Discovered new exit (range 6) 1774 | -10/Mines | Discovered new exit (range 13) 1786 | -10/Mines | Learned location of 1 exit from Materials 1820 | -10/Mines | Assisted by bots powering up and referring to "LRC-V3" 2008 | -10/Mines | Deemed a non-threat by the Exiles lab entrance 2009 | -10/Mines | Discovered new exit (range 5) 2023 | -10/Mines | Entered Exiles 2023 | -10/Exiles | Accompanied by 3 allies 2057 | -10/Exiles | Met 8R-AWN 2083 | -10/Exiles | Met EX-HEX 2157 | -10/Exiles | Met EX-DEC 2183 | -10/Exiles | Learned location of Zion (-7) 2236 | -10/Exiles | Discovered new exit (range 11) 2252 | -10/Exiles | Entered Mines 2252 | -9/Mines | Accompanied by 3 allies 2443 | -9/Mines | Received a Rocket Launcher from a helpful Derelict 2459 | -9/Mines | Discovered new exit (range 11) 2564 | -9/Mines | Discovered new exit (range 5) 3040 | -9/Mines | Core integrity fell below 50% 3161 | -9/Mines | Learned location of Storage (-7) 3316 | -9/Mines | Entered Materials 3316 | -8/Materials | Evolved 4 slots: Propulsion x1, Utility x3 3317 | -8/Materials | Identified exit to Factory 3570 | -8/Materials | Repaired Lgt. Treads 3604 | -8/Materials | Repaired Med. Armor Plating 3777 | -8/Materials | Garrison activated, responded to threat 3830 | -8/Materials | Lost 3 parts (1p1n1u) 4094 | -8/Materials | Entered Factory 4094 | -7/Factory | Accompanied by 5 allies 4094 | -7/Factory | Evolved 2 slots: Power x1, Utility x1 4095 | -7/Factory | Identified exit to Lower Caves 4328 | -7/Factory | Garrison activated, responded to threat 4328 | -7/Factory | Discovered exit to Lower Caves (range 15) 4494 | -7/Factory | First assault squad dispatched 4545 | -7/Factory | Entered Lower Caves 4545 | -7/Lower Caves | Accompanied by 2 allies 4865 | -7/Lower Caves | Identified exit to Lower Caves 5231 | -7/Lower Caves | Entered another Lower Caves area 5231 | -7/Lower Caves | Accompanied by 2 allies 5318 | -7/Lower Caves | Discovered new exit (range 9) 5573 | -7/Lower Caves | Learned location of 1 exit from Factory 5840 | -7/Lower Caves | Spotted B-75 Beast 6027 | -7/Lower Caves | Discovered new exit (range 5) 6050 | -7/Lower Caves | Entered Zion 6100 | -7/Zion | System corruption cleaned by Quarantine Array 6158 | -7/Zion | Discovered new exit (range 15) 6180 | -7/Zion | Gained Derelict followers 6382 | -7/Zion | Found Prototype Processor 6386 | -7/Zion | Found Prototype Processor 6417 | -7/Zion | Identified Spectral Analyzer 6480 | -7/Zion | Identified Exp. Signal Interpreter 6511 | -7/Zion | Found Prototype Processor 6525 | -7/Zion | Found Prototype Processor 6552 | -7/Zion | Identified Exp. Core Analyzer 6562 | -7/Zion | Identified Exp. Armor Integrity Analyzer 6680 | -7/Zion | Found Prototype Device 6699 | -7/Zion | Identified Phasing AFG 6874 | -7/Zion | Learned location of Data Miner (-6) 6881 | -7/Zion | Learned Factory trap positions 6946 | -7/Zion | Found Prototype Device 6957 | -7/Zion | Identified Bomb Factory No. 2 7404 | -7/Zion | Found Exp. Armor Integrity Analyzer 7563 | -7/Zion | Imprinted 7565 | -7/Zion | Declared Zion's savior 7685 | -7/Zion | Found Prototype Energy Gun 7874 | -7/Zion | Build established: Messiah-Mutant 7875 | -7/Zion | Entered Proximity Caves 7875 | -6/Proximity Caves | Accompanied by 8 allies 7926 | -6/Proximity Caves | Learned location of 2 exits from Factory 8171 | -6/Proximity Caves | Spotted B-75 Beast 8185 | -6/Proximity Caves | Identified exit to Factory 8257 | -6/Proximity Caves | Attracted the attention of an 0b10 checkpoint 8402 | -6/Proximity Caves | Entered Factory 8402 | -6/Factory | Evolved 2 slots: Weapon x2 8403 | -6/Factory | Identified exit to Factory 8403 | -6/Factory | Identified exit to Lower Caves 8404 | -6/Factory | Loaded intel: 133 trap records 8404 | -6/Factory | Identified Storm Laser 8695 | -6/Factory | Build established: Messiah-Tank 9195 | -6/Factory | Retrieved Zion intel report: Branch Access 9196 | -6/Factory | Zion Heavy squad teleported in 9589 | -6/Factory | Repaired Arm. Huge Wheel 9634 | -6/Factory | Repaired Med. Treads 9659 | -6/Factory | Entered Lower Caves 9659 | -6/Lower Caves | Accompanied by 1 ally 9878 | -6/Lower Caves | Build established: Messiah-Mutant 10092 | -6/Lower Caves | Identified exit to Lower Caves 10119 | -6/Lower Caves | Attracted the attention of an 0b10 checkpoint 10259 | -6/Lower Caves | Entered another Lower Caves area 10265 | -6/Lower Caves | Discovered exit to Factory (range 6) 10406 | -6/Lower Caves | Learned Factory terminal intel 10744 | -6/Lower Caves | Discovered new exit (range 10) 10821 | -6/Lower Caves | Entered Data Miner 10821 | -6/Data Miner | Discovered new exit (range 7) 10850 | -6/Data Miner | Met Data Miner 10878 | -6/Data Miner | Learned location of Section 7 (-3) 10878 | -6/Data Miner | Acquired the access code to Warlord's prototype stash 10904 | -6/Data Miner | Received God Mode back door access code from Data Miner 10937 | -6/Data Miner | Entered Proximity Caves 10980 | -5/Proximity Caves | Escorted by Enhanced Grunt 11027 | -5/Proximity Caves | Lost 3 parts (1u2w) 11033 | -5/Proximity Caves | Spotted B-75 Beast 11092 | -5/Proximity Caves | Destroyed B-75 Beast 11531 | -5/Proximity Caves | Lost 6 parts (1p2u3w) 11531 | -5/Proximity Caves | Discovered exit to Factory (range 4) 11575 | -5/Proximity Caves | Entered Factory 11575 | -5/Factory | Evolved 2 slots: Propulsion x1, Utility x1 11576 | -5/Factory | Loaded intel: 20 terminal locations 11867 | -5/Factory | Sucked down chute 11867 | -5/Factory | Entered Waste 11870 | -5/Waste | 1 allies followed down the chute 11911 | -5/Waste | Found Broken Fusion Bomb Launcher 11920 | -5/Waste | Spotted C-40 Crusher 11933 | -5/Waste | Spotted C-40 Crusher 11939 | -5/Waste | Destroyed C-40 Crusher 11950 | -5/Waste | Destroyed C-40 Crusher 11958 | -5/Waste | Spotted C-40 Crusher 11972 | -5/Waste | Allies destroyed C-40 Crusher 11986 | -5/Waste | Found Damper Plating 12008 | -5/Waste | Spotted C-40 Crusher 12016 | -5/Waste | Destroyed C-40 Crusher 12028 | -5/Waste | Spotted C-40 Crusher 12028 | -5/Waste | Spotted C-40 Crusher 12100 | -5/Waste | Crushed by Compactor (1 part destroyed, 1 dropped) 12160 | -5/Waste | Build established: Messiah-Tank 12165 | -5/Waste | Discovered new exit (range 16) 12193 | -5/Waste | Identified exit to Factory 12194 | -5/Waste | Entered Factory 12284 | -5/Factory | Incoming assault squad redirected 12409 | -5/Factory | Discovered new exit (range 10) 12423 | -5/Factory | Identified exit to Factory 12478 | -5/Factory | Repaired Arm. Huge Wheel 12505 | -5/Factory | Repaired Hcp. Storage Unit 12593 | -5/Factory | Discovered new exit (range 6) 12749 | -5/Factory | Garrison activated, responded to threat 12819 | -5/Factory | Identified exit to Upper Caves 12821 | -5/Factory | Entered Upper Caves 13205 | -5/Upper Caves | Attracted the attention of an 0b10 checkpoint 13501 | -5/Upper Caves | Discovered new exit (range 16) 13695 | -5/Upper Caves | Identified exit to Upper Caves 13738 | -5/Upper Caves | Entered another Upper Caves area 13987 | -5/Upper Caves | Spotted B-75 Beast 14019 | -5/Upper Caves | Attracted the attention of an 0b10 checkpoint 14185 | -5/Upper Caves | Ambushed by wild Derelicts 14501 | -5/Upper Caves | Discovered new exit (range 14) 14519 | -5/Upper Caves | Identified exit to Warlord 14520 | -5/Upper Caves | Entered Warlord 14573 | -5/Warlord | System corruption cleaned by Quarantine Array 15047 | -5/Warlord | Warlord's base attacked by MAIN.C 15219 | -5/Warlord | Found Prototype Energy Gun 15219 | -5/Warlord | Identified Vortex Shotgun 15222 | -5/Warlord | Found Vortex Shotgun 15230 | -5/Warlord | Found Vortex Shotgun 15384 | -5/Warlord | Rebuked by Warlord 15397 | -5/Warlord | Warlord forces counterattacked 15400 | -5/Warlord | Opened Warlord's prototype stash 15407 | -5/Warlord | Found Prototype Reactor 15414 | -5/Warlord | Found Prototype Device 15414 | -5/Warlord | Identified Exp. Phase Shifter 15422 | -5/Warlord | Found Prototype Device 15422 | -5/Warlord | Identified Thermal Barrier 15427 | -5/Warlord | Found Exp. Armor Integrity Analyzer 15607 | -5/Warlord | Spotted Executioner 15628 | -5/Warlord | Allies destroyed Executioner 15740 | -5/Warlord | Opened side exit 15779 | -5/Warlord | Discovered new exit (range 7) 15791 | -5/Warlord | Identified exit to Proximity Caves 15793 | -5/Warlord | Entered Proximity Caves 16119 | -4/Proximity Caves | Learned location of Armory (-4) 16454 | -4/Proximity Caves | Discovered exit to Factory (range 10) 16643 | -4/Proximity Caves | Found Prototype Launcher 16669 | -4/Proximity Caves | Identified Vortex Chain Reactor 16736 | -4/Proximity Caves | Identified Mni. Smartbomb Launcher 16740 | -4/Proximity Caves | Found Mni. Smartbomb Launcher 16883 | -4/Proximity Caves | Entered Factory 16883 | -4/Factory | Accompanied by 2 allies 16883 | -4/Factory | Evolved 2 slots: Utility x2 16902 | -4/Factory | Zion Infowar Resupply teleported in 16993 | -4/Factory | Discovered new exit (range 10) 17019 | -4/Factory | Identified exit to Upper Caves 17083 | -4/Factory | Zion Fire squad teleported in 17287 | -4/Factory | Incoming assault squad redirected 17341 | -4/Factory | Zion Hacker squad teleported in 17363 | -4/Factory | Zion Demo squad teleported in 17376 | -4/Factory | Discovered new exit (range 6) 17383 | -4/Factory | Zion Recon squad teleported in 17383 | -4/Factory | Identified exit to Extension 17386 | -4/Factory | Entered Extension 17386 | -4/Extension | Accompanied by 8 allies 17521 | -4/Extension | Spotted B-86 Titan 17525 | -4/Extension | Allies destroyed B-86 Titan 17592 | -4/Extension | Discovered new exit (range 4) 17593 | -4/Extension | Zion Hacker squad teleported in 17636 | -4/Extension | First assault squad dispatched 17753 | -4/Extension | Discovered new exit (range 16) 17755 | -4/Extension | Discovered new exit (range 15) 17796 | -4/Extension | Identified exit to Cetus 17834 | -4/Extension | Entered Cetus 17834 | -4/Cetus | Accompanied by 4 allies 17859 | -4/Cetus | Spotted Cetus Guard 17859 | -4/Cetus | Spotted Cetus Guard 17865 | -4/Cetus | Allies destroyed Cetus Guard 17866 | -4/Cetus | Spotted Cetus Guard 17869 | -4/Cetus | Allies destroyed Cetus Guard 17869 | -4/Cetus | Spotted Cetus Guard 17875 | -4/Cetus | Allies destroyed Cetus Guard 17876 | -4/Cetus | Allies destroyed Cetus Guard 17982 | -4/Cetus | Zion Hacker squad teleported in 18073 | -4/Cetus | Discovered new exit (range 15) 18105 | -4/Cetus | Spotted Cetus Guard 18105 | -4/Cetus | Spotted Cetus Guard 18107 | -4/Cetus | Destroyed Cetus Guard 18117 | -4/Cetus | Allies destroyed Cetus Guard 18119 | -4/Cetus | Spotted Cetus Guard 18121 | -4/Cetus | Allies destroyed Cetus Guard 18126 | -4/Cetus | Allies destroyed Cetus Guard 18136 | -4/Cetus | Discovered new exit (range 15) 18148 | -4/Cetus | Scared off Revision 17 18236 | -4/Cetus | Identified exit to Archives 18240 | -4/Cetus | Entered Archives 18240 | -4/Archives | Accompanied by 2 allies 18454 | -4/Archives | Discovered new exit (range 16) 18479 | -4/Archives | Discovered new exit (range 16) 18505 | -4/Archives | Identified exit to Hub_04(d) 18506 | -4/Archives | Entered Hub_04(d) 18549 | -4/Hub_04(d) | Zion Recon squad teleported in 18554 | -4/Hub_04(d) | Discovered new exit (range 23) 18894 | -4/Hub_04(d) | Zion Defense Resupply teleported in 19211 | -4/Hub_04(d) | Network Hub disabled 19235 | -4/Hub_04(d) | Incoming assault squad redirected 19237 | -4/Hub_04(d) | Spotted Lightning 19237 | -4/Hub_04(d) | Spotted Lightning 19238 | -4/Hub_04(d) | Spotted Lightning 19252 | -4/Hub_04(d) | Spotted Lightning 19254 | -4/Hub_04(d) | Spotted Lightning 19255 | -4/Hub_04(d) | Spotted Lightning 19261 | -4/Hub_04(d) | Spotted Lightning 19263 | -4/Hub_04(d) | Spotted Lightning 19263 | -4/Hub_04(d) | Spotted Lightning 19266 | -4/Hub_04(d) | Spotted Lightning 19270 | -4/Hub_04(d) | Identified exit to Research 19290 | -4/Hub_04(d) | Destroyed Lightning 19314 | -4/Hub_04(d) | Destroyed Lightning 19323 | -4/Hub_04(d) | Destroyed Lightning 19326 | -4/Hub_04(d) | Destroyed Lightning 19359 | -4/Hub_04(d) | Destroyed Lightning 19369 | -4/Hub_04(d) | Destroyed Lightning 19379 | -4/Hub_04(d) | Destroyed Lightning 19382 | -4/Hub_04(d) | Destroyed Lightning 19403 | -4/Hub_04(d) | Destroyed 9 combat bots 19405 | -4/Hub_04(d) | Destroyed Lightning 19450 | -4/Hub_04(d) | Destroyed Lightning 19457 | -4/Hub_04(d) | Found Prototype Energy Cannon 19457 | -4/Hub_04(d) | Identified EMDS 19461 | -4/Hub_04(d) | Found EMDS 19484 | -4/Hub_04(d) | Found Prototype Processor 19484 | -4/Hub_04(d) | Identified Exp. Targeting Computer 19506 | -4/Hub_04(d) | First assault squad dispatched 19517 | -4/Hub_04(d) | Found EMDS 19532 | -4/Hub_04(d) | Incoming assault squad redirected 19533 | -4/Hub_04(d) | Incoming assault squad redirected 19535 | -4/Hub_04(d) | Incoming assault squad redirected 19544 | -4/Hub_04(d) | Found EMDS 19560 | -4/Hub_04(d) | Found Exp. Targeting Computer 19565 | -4/Hub_04(d) | Entered Research 19565 | -3/Research | Evolved 2 slots: Utility x2 19585 | -3/Research | Found Exp. Signal Interpreter 19757 | -3/Research | Build established: Messiah-Mutant 19861 | -3/Research | First assault squad dispatched 20285 | -3/Research | Retrieved Zion intel report: Trap Installations 20816 | -3/Research | Terminal network hard line cut 20871 | -3/Research | Incoming assault squad redirected 20887 | -3/Research | Discovered new exit (range 7) 20935 | -3/Research | Identified exit to Research 20979 | -3/Research | Found Prototype Protection 20979 | -3/Research | Identified Centrium Heavy Armor Plating 21021 | -3/Research | Entered another Research area 21021 | -2/Research | Evolved 2 slots: Utility x2 21216 | -2/Research | Discovered new exit (range 11) 21239 | -2/Research | Identified exit to Testing 21271 | -2/Research | Zion Infowar Resupply teleported in 21271 | -2/Research | First assault squad dispatched 21295 | -2/Research | Entered Testing 21380 | -2/Testing | Repaired Hcp. Storage Unit 21414 | -2/Testing | Repaired Hcp. Storage Unit 21449 | -2/Testing | Repaired Hcp. Storage Unit 21773 | -2/Testing | Found Prototype Energy Cannon 21777 | -2/Testing | Found Prototype Energy Cannon 21898 | -2/Testing | Build established: Messiah-Tank 22057 | -2/Testing | System corruption reached 10% 22089 | -2/Testing | Identified Imp. Potential Cannon (x2) 22119 | -2/Testing | Lost 4 parts (1p3u) 22138 | -2/Testing | Destroyed 9 combat bots 22188 | -2/Testing | Retrieved Zion intel report: Unaware Analyses 22200 | -2/Testing | Discovered new exit (range 20) 22238 | -2/Testing | Retrieved Zion intel report: Component Stockpiles 22244 | -2/Testing | Found Prototype Protection 22250 | -2/Testing | Found Prototype Protection 22250 | -2/Testing | Identified Med. Regenerative Plating 22261 | -2/Testing | Found Lgt. Regenerative Plating 22308 | -2/Testing | Spotted PH-C41O62JX4T 22376 | -2/Testing | Rewired PH-C41O62JX4T 22411 | -2/Testing | Retrieved Zion intel report: Prototype Schematics 22537 | -2/Testing | Entered Access 22537 | -1/Access | Accompanied by 1 ally 22537 | -1/Access | Evolved 2 slots: Propulsion x2 22692 | -1/Access | Spotted B-99 Colossus 22769 | -1/Access | Build established: Messiah-Mutant 22771 | -1/Access | Destroyed B-99 Colossus 22798 | -1/Access | Lost 4 parts (1n1u2w) 22803 | -1/Access | Found Hvy. Insulated Plating 23037 | -1/Access | First assault squad dispatched 23194 | -1/Access | Retrieved Zion intel report: Active Terminals 23195 | -1/Access | Zion Hacker squad teleported in 23250 | -1/Access | Lost 3 parts (1n1u1w) 23267 | -1/Access | Destroyed 10 combat bots 23495 | -1/Access | Zion Recon squad teleported in 23562 | -1/Access | Garrison activated, responded to threat 23564 | -1/Access | Incoming assault squad redirected 23650 | -1/Access | Destroyed 11 combat bots 23725 | -1/Access | High security lockdown imminent 23785 | -1/Access | Identified SHELL Armor 23805 | -1/Access | High security lockdown engaged 23814 | -1/Access | Lost 3 parts (1u2w) 23826 | -1/Access | Destroyed 12 combat bots 23929 | -1/Access | Destroyed 12 combat bots 23948 | -1/Access | Spotted Executioner 23948 | -1/Access | Spotted Striker 23962 | -1/Access | Destroyed Striker 23968 | -1/Access | Destroyed Executioner 23979 | -1/Access | Spotted Investigator 23983 | -1/Access | Scanned by Researcher 23989 | -1/Access | Destroyed Investigator 24026 | -1/Access | Destroyed 17 combat bots 24093 | -1/Access | Core integrity fell below 50% 24094 | -1/Access | Released all parts (6) 24112 | -1/Access | Core integrity fell below 20% 24112 | -1/Access | Spotted Striker 24113 | -1/Access | Spotted Striker 24113 | -1/Access | Spotted Striker 24114 | -1/Access | Destroyed by Striker with Compact Linear Accelerator Last Messages --------------- 24090_ Imp. Potential Cannon destroyed. 24092_ EMDS Slug penetrates Wall. 24092_ EMDS destroyed. 24093_ Slug penetrates Wall. 24094_ Released Rnf. Quantum Reactor. 24094_ Released Imp. Targeting Computer. 24094_ Released Exp. Optical Array. 24094_ Released Hcp. Storage Unit. 24094_ Released Adv. Target Analyzer. 24094_ Released Adv. Energy Well. 24095_ System corrupted: Substantial component data lost. 24101_ System corrupted: Enh. Nova Cannon targeting data glitched. 24107_ Enh. Nova Cannon destroyed. 24107_ Slammed into S-43 Plague. 24108_ C-30 ARC bursts open, deploying its payload. 24108_ Striker unfolds itself. 24108_ E-15 Imp unfolds itself. 24111_ Vortex Chain Reactor destroyed. 24113_ Slammed into Striker. 24114_ G-73 Enforcer destroyed. Map ----- +----------------------------------------------------+ | "" # ## #??????????????????????????? | | " + ## ????????????????????????????? | | # ## ??????????######??????????????? | | # ## ??????????? #??????????????? | | ###### ## ????????????? #??????????????? | | ????# ###+#############? #??????????????? | | ????# #? * #??????????????? | | ????# + #??????????????? | | ????# ###+########## # #??????????????? | | ????#### ## #?# + #??????????????? | | ???????# ## #?# # #??????????????? | | ???????# ## ! #?# # #??????????????? | | ???????# ## #?# #?########??????????????? | | ???????# ## #?# #???????????????????????? | | ???????# ## #?# #######"????????????##### | | ???????# ## #?# """T""""????????????" | | ???????# ## ""#?# """ """????????????" | | ??????? # ""#?# "????????????" | | ??????? # ""#?# "????????????" | | ??????? # G#?# "?????????????? | | ??????? # ""#?# "???????????????? | | ????? # ""#?# "????????????????? | | ??# # ""### "????????????????? | | ??# # ##; gs "????????????????? | | ??# # ### Ks "????????????????? | | ??# ########### #ss@######"????????????????? | | ??# #?????### ;sgge#??###??????????????### | | ??+ #?????# ! ghg;;#####################"" | | ??# ########;**! h !*%[ | | ??# # !!! gK;;####################### | | ??# # ; #????????????????###### | | ??# # K ; #???????????????# | | ??# # ! ; ;###???????????????# | | ??# # % ## ##?????############# | | ??# # # ####### # | | ??# # # # | | ??# # # [ + | | ??# # # #####?# # | | ??# # ######?????## # | | ??# # #???????????# # ! | | ??# # #???????????# # | | ??+ " #???????????+ # | | ??# # #???????????# ###### | | ??# # #???????????# ####### #?# ## | | ### ###############????????# ???????# #?# | | #????????#????????# #?#### | | #?????????????????# #????? | | * #????????????######+###### | | #????????????# # | | #????????????# # | +----------------------------------------------------+ Best States ------------- Heat Dissipation 71 Coolant Potential 100 Energy Generation 55 Energy Capacity 1375 Matter Stores 510 Matter Capacity 800 Sight Range 23 Robot Scan Range 20 Terrain Scan Density 10 Jamming Range 16 Cloak Strength 3 Corruption Prevention 20 Armor Coverage 1950 Resistance: KI 30 Resistance: TH 50 Resistance: EM 90 Propulsion Shielding 90 Weapon Shielding 66 Phase Shifting 20 Evasion (%) 60 Targeting Accuracy 24 Target Analysis 8 Recoil Reduction 6 Offensive Hacking 14 Defensive Hacking 12 Item Schematics ----------------- Adv. Sensor Array | -8/Materials | Hacked Battle Rifle | -7/Zion | Free Barrage Gun | -7/Zion | Free Battle Cannon | -7/Zion | Free Enh. Flamer | -7/Zion | Free Exp. Signal Interpreter | -6/Factory | Scanalyzed Combat Drone Bay | -6/Data Miner | Free Lgt. Regenerative Plating | -6/Data Miner | Free Triangulator | -6/Data Miner | Free Exp. ECM Suite | -6/Data Miner | Free Hvy. Treads | -5/Factory | Scanalyzed Lrn. Sensor Array | -5/Upper Caves | Hacked Centrium Heavy Treads | -3/Research | Scanalyzed Adv. Variable Charge Gun | -2/Testing | Z-intel Kinetic Spear | -2/Testing | Z-intel Diametric Drive | -2/Testing | Z-intel Cld. Antigrav System | -2/Testing | Z-intel Prc. Phase Gun | -2/Testing | Z-intel Imp. Energy Mantle | -2/Testing | Z-intel Exp. Coolant Injector | -2/Testing | Z-intel Hvy. Wave Gun | -2/Testing | Z-intel Exp. Matter Compressor | -2/Testing | Z-intel Centrium Medium Armor Plating | -2/Testing | Z-intel Com. Particle Reactor | -2/Testing | Z-intel Robot Schematics ------------------ S-27 Virus | -6/Data Miner | Free G-50 Soldier | -6/Data Miner | Free I-36 Angel | -6/Data Miner | Free I-47 Archangel | -6/Data Miner | Free Fabricated ------------ Nothing Alien Tech Used ----------------- None Achievements -------------- None Challenges ------------ None Game ------ Seed MassExperimentalFrame Manual? 0 Play Time 03:17:41 Cumulative 521.2 hours Start 2020.05.07 @ 03:01:09 End 2020.05.07 @ 06:17:21 Sessions 1 Manual Loads 0 Difficulty Rogue Special Mode None Game No. 401 Rogue 397 Adventurer 4 Explorer 0 Win Type - Total 58 Types 50/3/1/2/2/0/0 Lore% 94 Gallery% 96 Achievement% 96 Wizard Run 0 Options --------- ASCII 0 Keyboard 0 Movement Vi Keybinds 0 Fullscreen 0 Font 16/Terminus Map View 76x50 Tactical HUD 1 Map Filters NONE Filters NONE Steam 1 RUN: 8c94d582-070a-46c0-89cb-5f67a26c8a6e